Workbook

Sheet Общая информация
A1: Наименование организации: | E1: МБОУ СОШ №6
A4: СГОЗ (общий) | C4: 7803607.6 | E4: п.4 (10% от СГОЗ или 2 000 000) | H4: 2000000 | L4: п.5 (50% СГОЗ) | M4: 5000000
A5: СГОЗ (остаток) | C5: =C4-G15+J15 -> 2647493.39 | E5: п.4 (остаток) | H5: =H4-G12 -> 778568.43 | L5: п.5 (остаток) | M5: =M4-G13 -> 1712758.14
A8: Способ определения поставщика (подрядчика, исполнителя) | D8: Начальная (максимальная) цена контракта | G8: Фактическая цена контракта | J8: Расторжение контракта по соглашению сторон | M8: Экономия
A9: Состоявшиеся аукционы | D9: ='Состоявшиеся аукционы'!G2 -> 0 | G9: ='Состоявшиеся аукционы'!Q2 -> 0 | J9: ='Состоявшиеся аукционы'!AB2 -> 0 | M9: =D9-G9 -> 0
A10: Несостоявшиеся аукционы | D10: ='Несостоявшиеся аукционы'!G2 -> 0 | G10: ='Несостоявшиеся аукционы'!Q2 -> 0 | J10: ='Несостоявшиеся аукционы'!AB2 -> 0 | M10: 0
A11: Иные конкурентные закупки | D11: ='Иные конкурентные закупки'!G2 -> 0 | G11: ='Иные конкурентные закупки'!Q2 -> 0 | J11: ='Иные конкурентные закупки'!AB2 -> 0 | M11: 0
A12: Ед. поставщик п.4 ч.1 | D12: ='Ед. поставщик п.4 ч.1'!H2 -> 1221431.57 | G12: =D12 -> 1221431.57 | J12: ='Ед. поставщик п.4 ч.1'!V2 -> 0 | M12: 0
A13: Ед. поставщик п. 5 ч. 1 | D13: ='Ед. поставщик п.5 ч.1'!H2 -> 3287241.86 | G13: =D13 -> 3287241.86 | J13: ='Ед. поставщик п.5 ч.1'!V2 -> 55559.22 | M13: 0
A14: Ед.поставщик за искл. п.4,5 ч.1 | D14: ='Ед.поставщик за искл. п.4,5 ч.1'!G2 -> 703000 | G14: =D14 -> 703000 | J14: ='Ед.поставщик за искл. п.4,5 ч.1'!T2 -> 0 | M14: 0
A15: Всего | D15: =SUM(D9:D14) -> 5211673.43 | G15: =SUM(G9:G14) -> 5211673.43 | J15: =SUM(J9:J14) -> 55559.22 | M15: 0
A19: Всего средств потрачено по заключенным контрактам | D19: ='Ед. поставщик п.4 ч.1'!P2+'Ед. поставщик п.5 ч.1'!P2+'Ед.поставщик за искл. п.4,5 ч.1'!N2+'Состоявшиеся аукционы'!V2+'Несостоявшиеся аукционы'!V2+'Иные конкурентные закупки'!V2 -> 3378297.39

Sheet Ед. поставщик п.4 ч.1
G2: Сумма заключенных контрактов | H2: =SUM(H9:H10001) -> 1221431.57 | N2: Сумма средств выплаченных по контрактам | P2: =SUM(P9:P10001) -> 687202.24 | S2: Общая сумма расторжений по контрактам/договорам | V2: =SUM(V9:V10001) -> 0
A6: № п/п | B6: Наименование муниципальной программы, национального или регионального проекта | C6: Контракт заключен в электронном виде посредством АИС "Портал поставщиков" (Да/Нет) | D6: Код бюджетной классификации | E6: № договора/контракта | F6: Дата заключения договора/контракта | G6: Предмет договора/контракта | H6: Цена договора/контракта | I6: Остаток по контракту | J6: ИНН поставщика (подрядчика, исполнителя) | K6: Поставщик (подрядчик, исполнитель) | L6: СМП и СОНО (да/нет) | M6: Сроки поставки товара (оказания услуги, выполнения работы), согласно договора/контракта; Предоставление документов на оплату Заказчику | N6: Фактическая дата поставки товара (оказания услуги, выполнения работы) | O6: Сроки оплаты согласно договора/контракта | P6: Сумма согласно документа об исполнении контракта заказчиком | Q6: Фактическая дата оплаты | R6: Изменение контракта (№, дата) | S6: Изменение контракта (увеличение цены контракта в рублях) | T6: Изменение контракта (уменьшение цены контракта в рублях) | U6: Расторжение контракта (№, дата) | V6: Сумма расторжения в рублях | W6: Примечание
A7: 1 | B7: 2 | C7: 3 | D7: 4 | E7: 5 | F7: 6 | G7: 7 | H7: 8 | I7: 9 | J7: 10 | K7: 11 | L7: 12 | M7: 13 | N7: 14 | O7: 15 | P7: 16 | Q7: 17 | R7: 18 | S7: 19 | T7: 20 | U7: 21 | V7: 22 | W7: 23
A8: 1 | B8: Муниципальная программа "Развитие образования" | D8: 902 0113 1310110490 244 | E8: № 1 | F8: 09.01.2020 | G8: Поставка бумаги для офисной техники | H8: 20000 | I8: =H8-P8 -> 0 | J8: 2353019514 | K8: ИП Котляров К.И. | M8: В течение 15 рабочих дней, со дня подписания сторонами контракта | N8: 2020-01-10 | O8: Не позднее 30 календарных дней с момента подписания акта приема-сдачи и документа на оплату | P8: 20000 | Q8: 2020-01-10 | W8: Пример
A9: 1 | B9: Муниципальная программа "Развитие образования" | C9: нет | D9: 925 0000 0000000000 244 | E9: № 6-21 | F9: 2021-01-21 | G9: Дератизационные работы | H9: 21993.04 | I9: =IF(X9 = 1, H9 + SUM(S9:S10) - SUM(T9:T10) - SUM(P9:P10) - V9,0) -> 10996.52 | J9: 2353018870 | K9: ООО "Дезинфекция" | L9: нет | M9: по мере необходимости | N9: 2021-03-25 | O9: Не позднее 30 календарных дней с момента подписания акта приема-сдачи и документа на оплату | P9: 5498.26 | Q9: 2021-04-15 | X9: 1
N10: 2021-06-30 | P10: 5498.26 | Q10: 2021-07-07 | X10: 1
A11: 2 | B11: Муниципальная программа "Развитие образования" | C11: нет | D11: 925 0000 0000000000 244 | E11: № 10 | F11: 2021-01-21 | G11: Работы по сервисному обслуживанию УУТЭ | H11: 17500 | I11: =IF(X11 = 2, H11 + SUM(S11:S14) - SUM(T11:T14) - SUM(P11:P14) - V11,0) -> 7500 | J11: 235301271520 | K11: ИП Дудкин | L11: нет | M11: согласно приложения 1 | N11: 2021-01-31 | O11: Не позднее 30 календарных дней с момента подписания акта приема-сдачи и документа на оплату | P11: 2500 | Q11: 2021-03-02 | X11: 2
N12: 2021-02-28 | P12: 2500 | Q12: 2021-03-09 | X12: 2
N13: 2021-03-31 | P13: 2500 | Q13: 2021-04-14 | X13: 2
N14: 2021-04-30 | P14: 2500 | Q14: 2021-05-14 | X14: 2
A15: 3 | B15: Муниципальная программа "Развитие образования" | C15: нет | D15: 925 0000 0000000000 244 | E15: № 8/21 | F15: 2021-01-21 | G15: Выполнение работ (оказание услуг) по предоставлению охраняемой автостоянки, предрейсовому и послерейсовому то автотранспорта и и медицинскому водителейосвидетельствованию | H15: 181680 | I15: =IF(X15 = 3, H15 + SUM(S15:S21) - SUM(T15:T21) - SUM(P15:P21) - V15,0) -> 89060 | J15: 235305769122 | K15: ИП Барма | L15: нет | M15: с 01.01.2021 по 31.12.2021 | N15: 2021-01-31 | O15: Не позднее 30 календарных дней с момента подписания акта приема-сдачи и документа на оплату | P15: 15000 | Q15: 2021-02-26 | X15: 3
N16: 2021-02-28 | P16: 14320 | Q16: 2021-03-05 | X16: 3
N17: 2021-03-31 | P17: 14900 | Q17: 2021-04-09 | X17: 3
N18: 2021-04-30 | P18: 15460 | Q18: 2021-05-12 | X18: 3
N19: 2021-05-31 | P19: 11940 | Q19: 2021-06-10 | X19: 3
N20: 2021-06-30 | P20: 10620 | Q20: 2021-07-12 | X20: 3
N21: 2021-07-31 | P21: 10380 | Q21: 2021-08-31 | X21: 3
A22: 4 | B22: Муниципальная программа "Развитие образования" | C22: нет | D22: 925 0000 0000000000 244 | E22: № 27 | F22: 2021-01-22 | G22: Энергоаккумуляторы | H22: 12680 | I22: =IF(X22 = 4, H22 + SUM(S22:S22) - SUM(T22:T22) - SUM(P22:P22) - V22,0) -> 0 | J22: 235305769122 | K22: ИП Барма | L22: нет | M22: В течение 14 рабочих дней | N22: 2021-02-17 | O22: Не позднее 30 календарных дней с момента подписания акта приема-сдачи и документа на оплату | P22: 12680 | Q22: 2021-02-17 | X22: 4
A23: 5 | B23: Муниципальная программа "Развитие образования" | C23: нет | D23: 925 0000 0000000000 244 | E23: № 49760026/21 | F23: 2021-02-01 | G23: Неисключительное право | H23: 2500 | I23: =IF(X23 = 5, H23 + SUM(S23:S23) - SUM(T23:T23) - SUM(P23:P23) - V23,0) -> 0 | J23: 6663003127 | K23: АО "ПФ "СКБ Контур" | L23: нет | M23: В течение 5 рабочих дней | N23: 2021-03-15 | O23: Не позднее 30 календарных дней с момента подписания акта приема-сдачи и документа на оплату | P23: 2500 | Q23: 2021-04-01 | X23: 5
A24: 6 | B24: Муниципальная программа "Развитие образования" | C24: нет | D24: 925 0000 0000000000 244 | E24: № 6 | F24: 2021-01-21 | G24: Поставка товара для бюджетных нужд (молоко) | H24: 16038 | I24: =IF(X24 = 6, H24 + SUM(S24:S38) - SUM(T24:T38) - SUM(P24:P38) - V24,0) -> 2029.5 | J24: 2334022342 | K24: ООО фирма "Калория" | L24: нет | M24: Четверг | N24: 2021-01-28 | O24: Не позднее 30 календарных дней с момента подписания акта приема-сдачи и документа на оплату | P24: 2524.5 | Q24: 2021-02-09 | X24: 6
N25: 2021-02-04 | P25: 825 | Q25: 2021-02-24 | X25: 6
N26: 2021-02-11 | P26: 808.5 | Q26: 2021-02-24 | X26: 6
N27: 2021-02-18 | P27: 825 | Q27: 2021-03-12 | X27: 6
N28: 2021-02-25 | P28: 825 | Q28: 2021-03-12 | X28: 6
N29: 2021-03-04 | P29: 841.5 | Q29: 2021-04-08 | X29: 6
N30: 2021-03-11 | P30: 808.5 | Q30: 2021-04-08 | X30: 6
N31: 2021-03-18 | P31: 808.5 | Q31: 2021-04-08 | X31: 6
N32: 2021-04-01 | P32: 841.5 | Q32: 2021-04-23 | X32: 6
N33: 2021-04-08 | P33: 808.5 | Q33: 2021-04-23 | X33: 6
N34: 2021-04-15 | P34: 825 | Q34: 2021-04-27 | X34: 6
N35: 2021-04-22 | P35: 792 | Q35: 2021-04-27 | X35: 6
N36: 2021-04-29 | P36: 841.5 | Q36: 2021-05-19 | X36: 6
N37: 2021-05-13 | P37: 792 | Q37: 2021-06-01 | X37: 6
N38: 2021-05-20 | P38: 841.5 | Q38: 2021-06-01 | X38: 6
A39: 7 | B39: Муниципальная программа "Развитие образования" | C39: нет | D39: 925 0000 0000000000 244 | E39: № 33 | F39: 2021-01-21 | G39: ТО автоматических установок пожарной сигнализации | H39: 24000 | I39: =IF(X39 = 7, H39 + SUM(S39:S46) - SUM(T39:T46) - SUM(P39:P46) - V39,0) -> 8000 | J39: 2353002302 | K39: ООО "Сигнал" | L39: нет | M39: Ежемесячно с 01.01.2021 по 31.12.2021 | N39: 2021-01-31 | O39: Не позднее 30 календарных дней с момента подписания акта приема-сдачи и документа на оплату | P39: 2000 | Q39: 2021-02-09 | X39: 7
N40: 2021-02-28 | P40: 2000 | Q40: 2021-03-09 | X40: 7
N41: 2021-03-31 | P41: 2000 | Q41: 2021-04-01 | X41: 7
N42: 2021-04-21 | P42: 2000 | Q42: 2021-04-27 | X42: 7
N43: 2021-05-21 | P43: 2000 | Q43: 2021-05-28 | X43: 7
N44: 2021-06-21 | P44: 2000 | Q44: 2021-07-07 | X44: 7
N45: 2021-07-31 | P45: 2000 | Q45: 2021-08-05 | X45: 7
N46: 2021-08-31 | P46: 2000 | Q46: 2021-08-31 | X46: 7
A47: 8 | B47: Муниципальная программа "Развитие образования" | C47: нет | D47: 925 0000 0000000000 244 | E47: № 39-С | F47: 2021-01-21 | G47: ТО установки системы пожарного мониторинга "Стрелец-мониторинг" | H47: 36000 | I47: =IF(X47 = 8, H47 + SUM(S47:S54) - SUM(T47:T54) - SUM(P47:P54) - V47,0) -> 12000 | J47: 2353002302 | K47: ООО "Сигнал" | L47: нет | M47: согласно графика | N47: 2021-01-31 | O47: Не позднее 30 календарных дней с момента подписания акта приема-сдачи и документа на оплату | P47: 3000 | Q47: 2021-02-09 | X47: 8
N48: 2021-02-28 | P48: 3000 | Q48: 2021-03-09 | X48: 8
N49: 2021-03-31 | P49: 3000 | Q49: 2021-04-01 | X49: 8
N50: 2021-04-21 | P50: 3000 | Q50: 2021-04-27 | X50: 8
N51: 2021-05-21 | P51: 3000 | Q51: 2021-05-28 | X51: 8
N52: 2021-06-21 | P52: 3000 | Q52: 2021-07-07 | X52: 8
N53: 2021-07-31 | P53: 3000 | Q53: 2021-08-05 | X53: 8
N54: 2021-08-31 | P54: 3000 | Q54: 2021-08-31 | X54: 8
A55: 9 | B55: Муниципальная программа "Развитие образования" | C55: нет | D55: 925 0000 0000000000 244 | E55: № 75 | F55: 2021-02-02 | G55: товар | H55: 10965 | I55: =IF(X55 = 9, H55 + SUM(S55:S55) - SUM(T55:T55) - SUM(P55:P55) - V55,0) -> 0 | J55: 235305769122 | K55: ИП Барма | L55: нет | M55: В течение 14 рабочих дней | N55: 2021-02-08 | O55: Не позднее 30 календарных дней с момента подписания акта приема-сдачи и документа на оплату | P55: 10965 | Q55: 2021-02-09 | X55: 9
A56: 10 | B56: Муниципальная программа "Развитие образования" | C56: нет | D56: 925 0000 0000000000 244 | E56: №95-ЭО | F56: 2021-02-05 | G56: Оказание консультационных услуг | H56: 3900 | I56: =IF(X56 = 10, H56 + SUM(S56:S56) - SUM(T56:T56) - SUM(P56:P56) - V56,0) -> 0 | J56: 235306110100 | K56: ИП Казерова | L56: нет | M56: В течение 3 дней после оплаты | N56: 2021-02-08 | O56: Не позднее 30 календарных дней с момента подписания акта приема-сдачи и документа на оплату | P56: 3900 | Q56: 2021-02-08 | X56: 10
A57: 11 | B57: Муниципальная программа "Развитие образования" | C57: нет | D57: 925 0000 0000000000 244 | E57: № 124 | F57: 2021-02-26 | G57: товар | H57: 7392 | I57: =IF(X57 = 11, H57 + SUM(S57:S57) - SUM(T57:T57) - SUM(P57:P57) - V57,0) -> 0 | J57: 235305769122 | K57: ИП Барма | L57: нет | M57: В течение 14 рабочих дней | N57: 2021-03-15 | O57: Не позднее 30 календарных дней с момента подписания акта приема-сдачи и документа на оплату | P57: 7392 | Q57: 2021-03-15 | X57: 11
A58: 12 | B58: Муниципальная программа "Развитие образования" | C58: нет | D58: 925 0000 0000000000 244 | E58: № 136 | F58: 2021-03-10 | G58: автошина | H58: 14650 | I58: =IF(X58 = 12, H58 + SUM(S58:S58) - SUM(T58:T58) - SUM(P58:P58) - V58,0) -> 0 | J58: 235305769122 | K58: ИП Барма | L58: нет | M58: В течение 14 рабочих дней | N58: 2021-03-15 | O58: Не позднее 30 календарных дней с момента подписания акта приема-сдачи и документа на оплату | P58: 14650 | Q58: 2021-03-15 | X58: 12
A59: 13 | B59: Муниципальная программа "Развитие образования" | C59: нет | D59: 925 0000 0000000000 244 | E59: № 198 | F59: 2021-03-29 | G59: Ремонт принтера | H59: 10290 | I59: =IF(X59 = 13, H59 + SUM(S59:S59) - SUM(T59:T59) - SUM(P59:P59) - V59,0) -> 0 | J59: 235300809163 | K59: ИП Коваленко | L59: нет | M59: В течение 5 рабочих дней | N59: 2021-03-29 | O59: Не позднее 30 календарных дней с момента подписания акта приема-сдачи и документа на оплату | P59: 10290 | Q59: 2021-04-09 | X59: 13
A60: 14 | B60: Муниципальная программа "Развитие образования" | C60: нет | D60: 925 0000 000000000 244 | E60: № 199 | F60: 2021-03-29 | G60: Заправка картриджа | H60: 13110 | I60: =IF(X60 = 14, H60 + SUM(S60:S60) - SUM(T60:T60) - SUM(P60:P60) - V60,0) -> 0 | J60: 235300809163 | K60: ИП Коваленко | L60: нет | M60: В течение 5 рабочих дней | N60: 2021-03-29 | O60: Не позднее 30 календарных дней с момента подписания акта приема-сдачи и документа на оплату | P60: 13110 | Q60: 2021-04-09 | X60: 14
A61: 15 | B61: Муниципальная программа "Развитие образования" | C61: нет | D61: 925 0000 0000000000 244 | E61: № 027 | F61: 2021-04-06 | G61: Бумага | H61: 12420 | I61: =IF(X61 = 15, H61 + SUM(S61:S61) - SUM(T61:T61) - SUM(P61:P61) - V61,0) -> 0 | J61: 235306030599 | K61: ИП Чуприков | L61: нет | M61: В течение 5 рабочих дней | N61: 2021-04-06 | O61: Не позднее 30 календарных дней с момента подписания акта приема-сдачи и документа на оплату | P61: 12420 | Q61: 2021-04-09 | X61: 15
A62: 16 | B62: Муниципальная программа "Развитие образования" | C62: нет | D62: 925 0000 000000000 244 | E62: 166-1 | F62: 2021-04-15 | G62: интернет | H62: 48280 | I62: =IF(X62 = 16, H62 + SUM(S62:S65) - SUM(T62:T65) - SUM(P62:P65) - V62,0) -> 29218.31 | J62: 7707049388 | K62: ПАО "Ростелеком" | L62: нет | M62: круглосуточно | N62: 2021-04-30 | O62: Не позднее 30 календарных дней с момента подписания акта приема-сдачи и документа на оплату | P62: 1732.88 | Q62: 2021-05-17 | X62: 16
N63: 2021-05-31 | P63: 5776.27 | Q63: 2021-06-10 | X63: 16
N64: 2021-06-30 | P64: 5776.27 | Q64: 2021-07-15 | X64: 16
N65: 2021-07-31 | P65: 5776.27 | Q65: 2021-08-18 | X65: 16
A66: 17 | B66: Муниципальная программа "Развитие образования" | C66: нет | D66: 925 0000 0000000000 244 | E66: 3356/212 | F66: 2021-04-27 | G66: подписка | H66: 9945.09 | I66: =IF(X66 = 17, H66 + SUM(S66:S66) - SUM(T66:T66) - SUM(P66:P66) - V66,0) -> 0 | J66: 7724490000 | K66: АО "Почта России" | L66: нет | M66: по графику | O66: Не позднее 30 календарных дней с момента подписания акта приема-сдачи и документа на оплату | P66: 9945.09 | Q66: 2021-04-29 | X66: 17
A67: 18 | B67: Муниципальная программа "Развитие образования" | C67: нет | D67: 925 0000 000000000 244 | E67: 2021-12-01 | F67: 2021-01-21 | G67: обучение | H67: 8000 | I67: =IF(X67 = 18, H67 + SUM(S67:S67) - SUM(T67:T67) - SUM(P67:P67) - V67,0) -> 0 | J67: 2327014502 | K67: ООО "БОЦ" | L67: нет | M67: с 18.01.2021 по 03.03.2021 | N67: 2021-04-03 | O67: Не позднее 30 календарных дней с момента подписания акта приема-сдачи и документа на оплату | P67: 8000 | Q67: 2021-04-26 | X67: 18
A68: 19 | B68: Муниципальная программа "Развитие образования" | C68: нет | D68: 925 0000 0000000000 244 | F68: 2021-04-16 | G68: дезинфекция | H68: 4700 | I68: =IF(X68 = 19, H68 + SUM(S68:S68) - SUM(T68:T68) - SUM(P68:P68) - V68,0) -> 0 | J68: 2353018870 | K68: ООО "Дезинфекция" | L68: нет | M68: с 16.04.2021 по 02.08.2021 | N68: 2021-06-23 | O68: Не позднее 30 календарных дней с момента подписания акта приема-сдачи и документа на оплату | P68: 4700 | Q68: 2021-06-28 | X68: 19
A69: 20 | B69: Муниципальная программа "Развитие образования" | C69: нет | D69: 925 0000 000000000 244 | F69: 2021-04-01 | G69: учебники | H69: 12525 | I69: =IF(X69 = 20, H69 + SUM(S69:S69) - SUM(T69:T69) - SUM(P69:P69) - V69,0) -> 0 | J69: 2310047193 | K69: ООО "ОИЦП "Перспективы образования" | L69: нет | M69: до 06.08.2021 | N69: 2021-06-25 | O69: Не позднее 30 календарных дней с момента подписания акта приема-сдачи и документа на оплату | P69: 12525 | Q69: 2021-07-19 | X69: 20
A70: 21 | B70: Муниципальная программа "Развитие образования" | C70: нет | D70: 925 0000 000000000 244 | F70: 2021-04-07 | G70: учебники | H70: 206073.01 | I70: =IF(X70 = 21, H70 + SUM(S70:S71) - SUM(T70:T71) - SUM(P70:P71) - V70,0) -> 0 | J70: 7715995942 | K70: АО "Издательство "Просвещение" | L70: нет | M70: до 06.08.2021 | N70: 2021-07-19 | O70: Не позднее 30 календарных дней с момента подписания акта приема-сдачи и документа на оплату | P70: 614.79 | Q70: 2021-07-19 | X70: 21
N71: 2021-07-22 | P71: 205458.22 | Q71: 2021-07-22 | X71: 21
A72: 22 | B72: Муниципальная программа "Развитие образования" | C72: нет | D72: 925 0000 000000000 244 | E72: 23-7346 | F72: 2021-02-25 | G72: аттестаты | H72: 10745.85 | I72: =IF(X72 = 22, H72 + SUM(S72:S72) - SUM(T72:T72) - SUM(P72:P72) - V72,0) -> 0 | J72: 7706526550 | K72: ООО "СпецБланк-Москва" | L72: нет | M72: в течение 40 дней после получения поставщиком подписанного контракта | N72: 2021-03-29 | O72: Не позднее 30 календарных дней с момента подписания акта приема-сдачи и документа на оплату | P72: 10745.85 | Q72: 2021-04-20 | X72: 22
A73: 23 | B73: Муниципальная программа "Развитие образования" | C73: нет | D73: 925 0000 000000000 244 | E73: АТОО-01709 | F73: 2021-05-17 | G73: СКЗИ | H73: 1000 | I73: =IF(X73 = 23, H73 + SUM(S73:S73) - SUM(T73:T73) - SUM(P73:P73) - V73,0) -> 0 | J73: 2311187588 | K73: ООО "АйТи Мониторинг" | L73: нет | M73: в течение 45 рабочих дней после оплаты | N73: 2021-05-23 | O73: Не позднее 30 календарных дней с момента подписания акта приема-сдачи и документа на оплату | P73: 1000 | Q73: 2021-05-25 | X73: 23
A74: 24 | B74: Муниципальная программа "Развитие образования" | C74: нет | D74: 925 0000 000000000 244 | E74: 43 | F74: 2021-05-25 | G74: запчасти на косилку | H74: 9380 | I74: =IF(X74 = 24, H74 + SUM(S74:S74) - SUM(T74:T74) - SUM(P74:P74) - V74,0) -> 0 | J74: 235301943813 | K74: Ип Отиско | L74: нет | N74: 2021-05-25 | O74: Не позднее 30 календарных дней с момента подписания акта приема-сдачи и документа на оплату | P74: 9380 | Q74: 2021-05-25 | X74: 24
A75: 25 | B75: Муниципальная программа "Развитие образования" | C75: нет | D75: 925 0000 000000000 244 | E75: 28 | F75: 2021-05-25 | G75: бумага | H75: 12420 | I75: =IF(X75 = 25, H75 + SUM(S75:S75) - SUM(T75:T75) - SUM(P75:P75) - V75,0) -> 0 | J75: 235306030599 | K75: ИП Чуприков | L75: нет | N75: 2021-05-25 | O75: Не позднее 30 календарных дней с момента подписания акта приема-сдачи и документа на оплату | P75: 12420 | Q75: 2021-05-31 | X75: 25
A76: 26 | B76: Муниципальная программа "Развитие образования" | C76: нет | D76: 925 0000 000000000 244 | E76: 12 | F76: 2021-05-28 | G76: ремкомплект рулевого пальца | H76: 880 | I76: =IF(X76 = 26, H76 + SUM(S76:S76) - SUM(T76:T76) - SUM(P76:P76) - V76,0) -> 0 | J76: 235306709863 | K76: ИП Бойкова | L76: нет | N76: 2021-05-28 | O76: Не позднее 30 календарных дней с момента подписания акта приема-сдачи и документа на оплату | P76: 880 | Q76: 2021-05-31 | X76: 26
A77: 27 | B77: Муниципальная программа "Развитие образования" | C77: нет | D77: 925 0000 000000000 244 | E77: 201 | F77: 2021-06-01 | G77: запчасти | H77: 15562 | I77: =IF(X77 = 27, H77 + SUM(S77:S77) - SUM(T77:T77) - SUM(P77:P77) - V77,0) -> 0 | J77: 235305769122 | K77: ИП Барма | L77: нет | N77: 2021-06-01 | O77: Не позднее 30 календарных дней с момента подписания акта приема-сдачи и документа на оплату | P77: 15562 | Q77: 2021-06-10 | X77: 27
A78: 28 | B78: Муниципальная программа "Развитие образования" | C78: нет | D78: 925 0000 000000000 244 | E78: 42 | F78: 2021-06-07 | G78: дезсредства | H78: 2765 | I78: =IF(X78 = 28, H78 + SUM(S78:S78) - SUM(T78:T78) - SUM(P78:P78) - V78,0) -> 0 | J78: 2312068671 | K78: ООО "Сервис-ЮГ-ККМ" | L78: нет | N78: 2021-06-07 | O78: Не позднее 30 календарных дней с момента подписания акта приема-сдачи и документа на оплату | P78: 2765 | Q78: 2021-06-16 | X78: 28
A79: 29 | B79: Муниципальная программа "Развитие образования" | C79: нет | D79: 925 0000 000000000 244 | E79: 44348 | F79: 2021-06-11 | G79: Текущий ремонт пищеблока | H79: 300000 | I79: =IF(X79 = 29, H79 + SUM(S79:S79) - SUM(T79:T79) - SUM(P79:P79) - V79,0) -> 300000 | J79: 236903124997 | K79: ИП Сайдумов | L79: нет | M79: с 19.07.2021 по 31.07.2021 | O79: Не позднее 30 календарных дней с момента подписания акта приема-сдачи и документа на оплату | X79: 29
A80: 30 | B80: Муниципальная программа "Развитие образования" | C80: нет | D80: 925 0000 000000000 244 | E80: 141 | F80: 2021-06-23 | G80: план эвакуации | H80: 13500 | I80: =IF(X80 = 30, H80 + SUM(S80:S80) - SUM(T80:T80) - SUM(P80:P80) - V80,0) -> 0 | J80: 235303841817 | K80: ИП Черненко | L80: нет | M80: в течение 10 дней с момента оплаты | N80: 2021-07-05 | O80: Не позднее 30 календарных дней с момента подписания акта приема-сдачи и документа на оплату | P80: 13500 | Q80: 2021-06-28 | X80: 30
A81: 31 | B81: Муниципальная программа "Развитие образования" | C81: нет | D81: 925 0000 000000000 244 | E81: 44 | F81: 2021-06-29 | G81: краска | H81: 21980 | I81: =IF(X81 = 31, H81 + SUM(S81:S81) - SUM(T81:T81) - SUM(P81:P81) - V81,0) -> 0 | J81: 235301943813 | K81: ИП Отиско | L81: нет | N81: 2021-06-29 | O81: Не позднее 30 календарных дней с момента подписания акта приема-сдачи и документа на оплату | P81: 21980 | Q81: 2021-06-29 | X81: 31
A82: 32 | B82: Муниципальная программа "Развитие образования" | C82: нет | D82: 925 0000 000000000 244 | E82: 5 | F82: 2021-06-30 | G82: ктс | H82: 1200 | I82: =IF(X82 = 32, H82 + SUM(S82:S82) - SUM(T82:T82) - SUM(P82:P82) - V82,0) -> 1200 | J82: 2353019514 | K82: ООО ЧОП Анаконда | L82: нет | M82: июль 2021 | O82: Не позднее 30 календарных дней с момента подписания акта приема-сдачи и документа на оплату | X82: 32
A83: 33 | B83: Муниципальная программа "Развитие образования" | C83: нет | D83: 925 0000 000000000 244 | E83: 24/2021 | F83: 2021-07-01 | G83: монтаж ктс | H83: 41000 | I83: =IF(X83 = 33, H83 + SUM(S83:S83) - SUM(T83:T83) - SUM(P83:P83) - V83,0) -> 41000 | J83: 232700864879 | K83: ИП Ус | L83: нет | M83: в течение 30 рабочих дней | O83: Не позднее 30 календарных дней с момента подписания акта приема-сдачи и документа на оплату | X83: 33
A84: 34 | B84: Муниципальная программа "Развитие образования" | C84: нет | D84: 925 0000 000000000 244 | E84: 446 | F84: 2021-07-02 | G84: заправка картриджа | H84: 7680 | I84: =IF(X84 = 34, H84 + SUM(S84:S84) - SUM(T84:T84) - SUM(P84:P84) - V84,0) -> 0 | J84: 235300809163 | K84: ИП Коваленко | L84: нет | N84: 2021-07-10 | O84: Не позднее 30 календарных дней с момента подписания акта приема-сдачи и документа на оплату | P84: 7680 | Q84: 2021-07-12 | X84: 34
A85: 35 | B85: Муниципальная программа "Развитие образования" | C85: нет | D85: 925 0000 000000000 244 | E85: 62 | F85: 2021-07-05 | G85: краска, товар | H85: 42490 | I85: =IF(X85 = 35, H85 + SUM(S85:S85) - SUM(T85:T85) - SUM(P85:P85) - V85,0) -> 0 | J85: 235305536400 | K85: ИП Быстров | L85: нет | N85: 2021-07-10 | O85: Не позднее 30 календарных дней с момента подписания акта приема-сдачи и документа на оплату | P85: 42490 | Q85: 2021-07-12 | X85: 35
A86: 36 | B86: Муниципальная программа "Развитие образования" | C86: нет | D86: 925 0000 000000000 244 | E86: 295 | F86: 2021-07-14 | G86: крестовина | H86: 2100 | I86: =IF(X86 = 36, H86 + SUM(S86:S86) - SUM(T86:T86) - SUM(P86:P86) - V86,0) -> 0 | J86: 235305769122 | K86: ИП Барма | L86: нет | N86: 2021-07-20 | O86: Не позднее 30 календарных дней с момента подписания акта приема-сдачи и документа на оплату | P86: 2100 | Q86: 2021-07-22 | X86: 36
A87: 37 | B87: Муниципальная программа "Развитие образования" | C87: нет | D87: 925 0000 000000000 244 | E87: 39 | F87: 2021-07-15 | G87: самоспасатель "Феникс" | H87: 2200 | I87: =IF(X87 = 37, H87 + SUM(S87:S87) - SUM(T87:T87) - SUM(P87:P87) - V87,0) -> 0 | J87: 235304202316 | K87: ИП Барма | L87: нет | N87: 2021-07-31 | O87: Не позднее 30 календарных дней с момента подписания акта приема-сдачи и документа на оплату | P87: 2200 | Q87: 2021-08-02 | X87: 37
A88: 38 | B88: Муниципальная программа "Развитие образования" | C88: нет | D88: 925 0000 000000000 244 | E88: 63 | F88: 2021-07-18 | G88: экскурсионные услуги | H88: 7840 | I88: =IF(X88 = 38, H88 + SUM(S88:S88) - SUM(T88:T88) - SUM(P88:P88) - V88,0) -> 0 | J88: 2353016418 | K88: Местная религиозная организация | L88: нет | M88: 11.08.2021 | N88: 2021-08-11 | O88: Не позднее 30 календарных дней с момента подписания акта приема-сдачи и документа на оплату | P88: 7840 | Q88: 2021-08-20 | X88: 38
A89: 39 | B89: Муниципальная программа "Развитие образования" | C89: нет | D89: 925 0000 000000000 244 | E89: 9 | F89: 2021-07-18 | G89: экскурсионные услуги | H89: 8400 | I89: =IF(X89 = 39, H89 + SUM(S89:S89) - SUM(T89:T89) - SUM(P89:P89) - V89,0) -> 0 | J89: 2353016418 | K89: Местная религиозная организация | L89: нет | M89: 03.08.2021 | N89: 2021-08-03 | O89: Не позднее 30 календарных дней с момента подписания акта приема-сдачи и документа на оплату | P89: 8400 | Q89: 2021-08-20 | X89: 39
A90: 40 | B90: Муниципальная программа "Развитие образования" | C90: нет | D90: 925 0000 000000000 244 | E90: 359 | F90: 2021-07-26 | G90: перезарядка огнетушителя | H90: 900 | I90: =IF(X90 = 40, H90 + SUM(S90:S90) - SUM(T90:T90) - SUM(P90:P90) - V90,0) -> 0 | J90: 2353002302 | K90: ООО "Сигнал" | L90: нет | M90: В течение 5 рабочих дней после подписания договора | N90: 2021-08-07 | O90: Не позднее 30 календарных дней с момента подписания акта приема-сдачи и документа на оплату | P90: 900 | Q90: 2021-08-09 | X90: 40
A91: 41 | B91: Муниципальная программа "Развитие образования" | C91: нет | D91: 925 0000 000000000 244 | E91: 14 | F91: 2021-08-02 | G91: экскурсионное обслуживание | H91: 1540 | I91: =IF(X91 = 41, H91 + SUM(S91:S91) - SUM(T91:T91) - SUM(P91:P91) - V91,0) -> 0 | J91: 2315104991 | K91: ГБУК КК "Новороссийский исторический музей-заповедник" | L91: нет | M91: 11.08.2021 | N91: 2021-08-11 | O91: Не позднее 30 календарных дней с момента подписания акта приема-сдачи и документа на оплату | P91: 1540 | Q91: 2021-08-20 | X91: 41
A92: 42 | B92: Муниципальная программа "Развитие образования" | C92: нет | D92: 925 0000 000000000 244 | E92: б/н | F92: 2021-08-23 | G92: Страхование гражданской ответственности транспортных средств | H92: 9982.58 | I92: =IF(X92 = 42, H92 + SUM(S92:S92) - SUM(T92:T92) - SUM(P92:P92) - V92,0) -> 0 | J92: 7710026574 | K92: САО "ВСК" | L92: нет | N92: 2021-08-23 | O92: Не позднее 30 календарных дней с момента подписания акта приема-сдачи и документа на оплату | P92: 9982.58 | Q92: 2021-08-31 | X92: 42
A93: 43 | B93: Муниципальная программа "Развитие образования" | C93: нет | D93: 925 0000 000000000 244 | E93: 328 | F93: 2021-08-26 | G93: масло, шины | H93: 33225 | I93: =IF(X93 = 43, H93 + SUM(S93:S93) - SUM(T93:T93) - SUM(P93:P93) - V93,0) -> 33225 | J93: 235305769122 | K93: ИП Барма | L93: нет | M93: В течение 14 рабочих дней после оплаты | O93: Не позднее 30 календарных дней с момента подписания акта приема-сдачи и документа на оплату | X93: 43
X94: 44

Sheet Ед. поставщик п.5 ч.1
F2: Сумма заключенных контрактов | H2: =SUM(H9:H9999) -> 3287241.86 | N2: Сумма средств выплаченных по контрактам | P2: =SUM(P9:P9999) -> 2334476.05 | S2: Общая сумма расторжений по контрактам/договорам | V2: =SUM(V9:V9999) -> 55559.22
A6: № п/п | B6: Наименование муниципальной программы, национального или регионального проекта | C6: Контракт заключен в электронном виде посредством АИС "Портал поставщиков" (Да/Нет) | D6: Код бюджетной классификации | E6: № договора/контракта | F6: Дата заключения договора/контракта | G6: Предмет договора/контракта | H6: Цена договора/контракта | I6: Остаток по контракту | J6: ИНН поставщика (подрядчика, исполнителя) | K6: Поставщик (подрядчик, исполнитель) | L6: СМП и СОНО (Да/Нет) | M6: Сроки поставки товара (оказания услуги, выполнения работы), согласно контракта; Предоставление документов на оплату Закзчику | N6: Фактическая дата поставки товара (оказания услуги, выполнения работы) и (или) предоставление документов на оплату и подписание документов о приемке | O6: Сроки оплаты согласно договора/контракта | P6: Сумма согласно документа об исполнении контракта заказчиком | Q6: Фактическая дата оплаты | R6: Изменение контракта (№, дата) | S6: Изменение контракта (увеличение цены контракта в рублях) | T6: Изменение контракта (уменьшение цены контракта в рублях) | U6: Расторжение контракта (№, дата) | V6: Сумма расторжения | W6: Примечание
A7: 1 | B7: 2 | C7: 3 | D7: 4 | E7: 5 | F7: 6 | G7: 7 | H7: 8 | I7: 9 | J7: 10 | K7: 11 | L7: 12 | M7: 13 | N7: 14 | O7: 15 | P7: 16 | Q7: 17 | R7: 18 | S7: 19 | T7: 20 | U7: 21 | V7: 22 | W7: 23
A8: 1 | B8: Муниципальная программа "Развитие образования" | D8: 902 0113 1310110490 244 | E8: № 1 | F8: 2020-01-09 | G8: Поставка бумаги для офисной техники | H8: 20000 | I8: 0 | J8: 2353019514 | K8: ИП Котляров К.И. | M8: В течение 15 рабочих дней, со дня подписания сторонами контракта | N8: 2020-01-10 | O8: Не позднее 30 календарных дней с момента подписания Заказчиком и Подрядчиком акта приема-сдачи и предоставленного Подрядчиком документа на оплату | P8: 20000 | Q8: 2020-01-10 | W8: Пример
A9: 1 | B9: Муниципальная программа "Развитие образования" | C9: нет | D9: 925 0000 0000000000 244 | E9: №6 | F9: 2020-11-18 | G9: Оказание охранных услуг | H9: 325800 | I9: =IF(X9 = 1, H9 + SUM(S9:S14) - SUM(T9:T14) - SUM(P9:P14) - V9,0) -> 0 | J9: 2311119676 | K9: ООО ЧОА "Альфа ПЛЮС" | L9: нет | M9: круглосуточно | N9: 2021-01-31 | O9: Не позднее 30 календарных дней с момента подписания Заказчиком и Подрядчиком акта приема-сдачи и предоставленного Подрядчиком документа на оплату | P9: 55800 | Q9: 2021-02-10 | X9: 1
N10: 2021-02-28 | P10: 50400 | Q10: 2021-03-04 | X10: 1
N11: 2021-03-31 | P11: 55800 | Q11: 2021-04-01 | X11: 1
N12: 2021-04-30 | P12: 54000 | Q12: 2021-05-14 | X12: 1
N13: 2021-05-31 | P13: 55800 | Q13: 2021-06-01 | X13: 1
N14: 2021-06-30 | P14: 54000 | Q14: 2021-07-07 | X14: 1
A15: 2 | B15: Муниципальная программа "Развитие образования" | C15: нет | D15: 925 0000 0000000000 244 | E15: № 209-ПЦО | F15: 2020-12-31 | G15: Оказание охранных услуг (ктс) | H15: 7200 | I15: =IF(X15 = 2, H15 + SUM(S15:S20) - SUM(T15:T20) - SUM(P15:P20) - V15,0) -> 0 | J15: 2311148532 | K15: ООО ЧОА "Альфа-юг Сервис" | L15: нет | M15: круглосуточно | N15: 2021-01-31 | O15: Не позднее 30 календарных дней с момента подписания Заказчиком и Подрядчиком акта приема-сдачи и предоставленного Подрядчиком документа на оплату | P15: 1200 | Q15: 2021-03-02 | X15: 2
N16: 2021-02-28 | P16: 1200 | Q16: 2021-03-02 | X16: 2
N17: 2021-03-31 | P17: 1200 | Q17: 2021-04-01 | X17: 2
N18: 2021-04-30 | P18: 1200 | Q18: 2021-05-14 | X18: 2
N19: 2021-05-31 | P19: 1200 | Q19: 2021-06-01 | X19: 2
N20: 2021-06-30 | P20: 1200 | Q20: 2021-07-07 | X20: 2
A21: 3 | B21: Муниципальная программа "Развитие образования" | C21: нет | D21: 925 0000 0000000000 244 | E21: № 67 | F21: 2020-12-31 | G21: Оказание услуг по обращению с твердыми коммунальными отходами | H21: 68431.87 | I21: =IF(X21 = 3, H21 + SUM(S21:S27) - SUM(T21:T27) - SUM(P21:P27) - V21,0) -> 48952.49 | J21: 2353022813 | K21: ООО "Чистый город" | L21: нет | M21: по заявке Потребителя | N21: 2021-01-31 | O21: Не позднее 10 календарных дней с момента подписания Заказчиком и Подрядчиком акта приема-сдачи и предоставленного Подрядчиком документа на оплату | P21: 1735.79 | Q21: 2021-03-09 | X21: 3
N22: 2021-02-28 | P22: 4628.76 | Q22: 2021-03-29 | X22: 3
N23: 2021-03-31 | P23: 3278.71 | Q23: 2021-04-14 | X23: 3
N24: 2021-04-30 | P24: 3664.44 | Q24: 2021-05-21 | X24: 3
N25: 2021-05-31 | P25: 3857.3 | Q25: 2021-06-16 | X25: 3
N26: 2021-06-30 | P26: 1542.92 | Q26: 2021-07-19 | X26: 3
N27: 2021-07-31 | P27: 771.46 | Q27: 2021-08-30 | X27: 3
A28: 4 | B28: Муниципальная программа "Развитие образования" | C28: нет | D28: 925 0000 0000000000 244 | E28: № 23070500203 | F28: 2021-01-14 | G28: Энергоснабжение | H28: 259100 | I28: =IF(X28 = 4, H28 + SUM(S28:S46) - SUM(T28:T46) - SUM(P28:P46) - V28,0) -> 19774.62 | J28: 2308119595 | K28: ПАО "ТНС энерго Кубань" | L28: нет | M28: круглосуточно | N28: 2021-01-01 | O28: 30 % - до 10 числа, 40 % - до 25 числа | P28: 14233.76 | Q28: 2021-01-18 | X28: 4
N29: 2021-01-01 | P29: 22503.94 | Q29: 2021-01-22 | X29: 4
N30: 2021-02-01 | P30: 16877.95 | Q30: 2021-02-02 | X30: 4
N31: 2021-02-01 | P31: 11794.64 | Q31: 2021-02-17 | X31: 4
N32: 2021-03-01 | P32: 8845.99 | Q32: 2021-03-03 | X32: 4
N33: 2021-02-28 | P33: 9539.02 | Q33: 2021-03-16 | X33: 4
N34: 2021-03-01 | P34: 21745.72 | Q34: 2021-03-16 | X34: 4
N35: 2021-04-01 | P35: 16309.28 | Q35: 2021-04-01 | X35: 4
N36: 2021-04-01 | P36: 15640.16 | Q36: 2021-04-14 | X36: 4
N37: 2021-03-31 | P37: 8508.72 | Q37: 2021-04-14 | X37: 4
N38: 2021-05-01 | P38: 11730.13 | Q38: 2021-05-14 | X38: 4
N39: 2021-05-01 | P39: 4170.92 | Q39: 2021-05-17 | X39: 4
N40: 2021-06-01 | P40: 3128.2 | Q40: 2021-06-01 | X40: 4
N41: 2021-05-31 | P41: 13863.55 | Q41: 2021-06-16 | X41: 4
N42: 2021-06-01 | P42: 23554.54 | Q42: 2021-06-16 | X42: 4
N43: 2021-07-01 | P43: 17665.9 | Q43: 2021-07-02 | X43: 4
N44: 2021-07-01 | P44: 5086.19 | Q44: 2021-07-19 | X44: 4
N45: 2021-08-01 | P45: 3814.64 | Q45: 2021-08-05 | X45: 4
N46: 2021-08-01 | P46: 10312.13 | Q46: 2021-08-18 | X46: 4
A47: 5 | B47: Муниципальная программа "Развитие образования" | C47: нет | D47: 925 0000 0000000000 244 | E47: № 1 | F47: 2021-01-21 | G47: Водоснабжение | H47: 47100 | I47: =IF(X47 = 5, H47 + SUM(S47:S54) - SUM(T47:T54) - SUM(P47:P54) - V47,0) -> 26460.41 | J47: 2353246210 | K47: ООО "Коммунальник" | L47: нет | M47: круглосуточно | N47: 2021-01-31 | O47: до 25 числа | P47: 1590.72 | Q47: 2021-03-09 | X47: 5
N48: 2021-02-28 | P48: 4971 | Q48: 2021-03-09 | X48: 5
N49: 2021-03-31 | P49: 3260.97 | Q49: 2021-04-14 | X49: 5
N50: 2021-04-30 | P50: 2624.68 | Q50: 2021-05-14 | X50: 5
N51: 2021-05-31 | P51: 1710.02 | Q51: 2021-05-28 | X51: 5
N52: 2021-06-30 | P52: 1033.97 | Q52: 2021-07-07 | X52: 5
N53: 2021-07-31 | P53: 2505.39 | Q53: 2021-08-05 | X53: 5
N54: 2021-08-31 | P54: 2942.84 | Q54: 2021-08-30 | X54: 5
A55: 6 | B55: Муниципальная программа "Развитие образования" | C55: нет | D55: 925 0000 0000000000 244 | E55: № 6 | F55: 2021-01-21 | G55: Услуги по организации горячего питания обучающихся по образовательным программам начального общего образования | H55: 270706.8 | I55: =IF(X55 = 6, H55 + SUM(S55:S62) - SUM(T55:T62) - SUM(P55:P62) - V55,0) -> 0 | J55: 2353020735 | K55: ООО "Тимашевское ПРТ Райпо" | L55: нет | M55: с 11.01.2021 по 25.05.2021 | N55: 2021-01-22 | O55: Не позднее 30 календарных дней с момента подписания Заказчиком и Подрядчиком акта приема-сдачи и предоставленного Подрядчиком документа на оплату | P55: 6313.54 | Q55: 2021-02-24 | U55: б/н | V55: 43035.72 | X55: 6
N56: 2021-01-22 | P56: 98910.02 | Q56: 2021-02-24 | X56: 6
N57: 2021-01-21 | P57: 32228.5 | Q57: 2021-03-19 | X57: 6
N58: 2021-01-21 | P58: 2057.18 | Q58: 2021-03-19 | X58: 6
N59: 2021-01-21 | P59: 56784.54 | Q59: 2021-03-19 | X59: 6
N60: 2021-01-21 | P60: 3624.62 | Q60: 2021-03-19 | X60: 6
N61: 2021-01-21 | P61: 26087.49 | Q61: 2021-03-19 | X61: 6
N62: 2021-01-21 | P62: 1665.19 | Q62: 2021-03-19 | X62: 6
A63: 7 | B63: Муниципальная программа "Развитие образования" | C63: нет | D63: 925 0000 0000000000 244 | E63: № ДГ-21/21 | F63: 2021-01-21 | G63: Услуги по техническому сопровождению системы мониторинга транспортных средств | H63: 7200 | I63: =IF(X63 = 7, H63 + SUM(S63:S64) - SUM(T63:T64) - SUM(P63:P64) - V63,0) -> 3600 | J63: 2369000660 | K63: ООО "КАНкорт" | M63: круглосуточно с 01.01.2021 по 31.12.2021 | N63: 2021-03-31 | O63: Не позднее 30 календарных дней с момента подписания Заказчиком и Подрядчиком акта приема-сдачи и предоставленного Подрядчиком документа на оплату | P63: 1800 | Q63: 2021-04-01 | X63: 7
N64: 2021-06-30 | P64: 1800 | Q64: 2021-07-06 | X64: 7
A65: 8 | B65: Муниципальная программа "Развитие образования" | C65: нет | D65: 925 0000 0000000000 244 | E65: 6/3 | F65: 2021-01-21 | G65: Услуги по организации питания учащихся | H65: 96050 | I65: =IF(X65 = 8, H65 + SUM(S65:S74) - SUM(T65:T74) - SUM(P65:P74) - V65,0) -> 26042 | J65: 2353020735 | K65: ООО "Тимашевское ПРТ Райпо" | M65: с 11.01.2021 по 25.05.2021 | N65: 2021-01-29 | O65: Не позднее 30 календарных дней с момента подписания Заказчиком и Подрядчиком акта приема-сдачи и предоставленного Подрядчиком документа на оплату | P65: 9204 | Q65: 2021-02-11 | X65: 8
N66: 2021-01-29 | P66: 4510 | Q66: 2021-02-11 | X66: 8
N67: 2021-01-21 | P67: 11724 | Q67: 2021-03-12 | X67: 8
N68: 2021-01-21 | P68: 5610 | Q68: 2021-03-12 | X68: 8
N69: 2021-03-31 | P69: 4490 | Q69: 2021-04-12 | X69: 8
N70: 2021-03-31 | P70: 9528 | Q70: 2021-04-14 | X70: 8
N71: 2021-04-30 | P71: 12780 | Q71: 2021-05-19 | X71: 8
N72: 2021-04-30 | P72: 5820 | Q72: 2021-05-19 | X72: 8
N73: 2021-05-21 | P73: 4332 | Q73: 2021-06-07 | X73: 8
N74: 2021-05-21 | P74: 2010 | Q74: 2021-06-07 | X74: 8
A75: 9 | B75: Муниципальная программа "Развитие образования" | C75: нет | D75: 925 0000 00000000000 244 | E75: 6/1 | F75: 2021-01-21 | G75: Услуги по организации горячего питания обучающихся по образовательным программам начального общего образования | H75: 77385 | I75: =IF(X75 = 9, H75 + SUM(S75:S76) - SUM(T75:T76) - SUM(P75:P76) - V75,0) -> 0 | J75: 2353020735 | K75: ООО "Тимашевское ПРТ Райпо" | M75: с 11.01.2021 по 26.02.2021 | N75: 2021-01-29 | O75: Не позднее 30 календарных дней с момента подписания Заказчиком и Подрядчиком акта приема-сдачи и предоставленного Подрядчиком документа на оплату | P75: 30079.5 | Q75: 2021-03-01 | U75: б/н | V75: 12523.5 | X75: 9
N76: 2021-01-21 | P76: 34782 | Q76: 2021-03-12 | X76: 9
A77: 10 | B77: Муниципальная программа "Развитие образования" | C77: нет | D77: 925 0000 0000000000 244 | E77: № 6/2 | F77: 2021-01-21 | G77: Организация горячего питания обучающихся с ограниченными возможностями здоровья | H77: 39508 | I77: =IF(X77 = 10, H77 + SUM(S77:S81) - SUM(T77:T81) - SUM(P77:P81) - V77,0) -> 579 | J77: 2353020735 | K77: ООО "Тимашевское ПРТ Райпо" | L77: нет | M77: с 11.01.2021 по 24.05.2021 | N77: 2021-01-21 | O77: Не позднее 30 календарных дней с момента подписания Заказчиком и Подрядчиком акта приема-сдачи и предоставленного Подрядчиком документа на оплату | P77: 7174 | Q77: 2021-02-11 | X77: 10
N78: 2021-01-21 | P78: 8662 | Q78: 2021-03-12 | X78: 10
N79: 2021-03-31 | P79: 7370 | Q79: 2021-04-12 | X79: 10
N80: 2021-04-30 | P80: 11116 | Q80: 2021-05-19 | X80: 10
N81: 2021-05-21 | P81: 4607 | Q81: 2021-06-07 | X81: 10
A82: 11 | B82: Муниципальная программа "Развитие образования" | C82: нет | D82: 925 0000 0000000000 244 | E82: № 166 | F82: 2021-01-21 | G82: Оказание услуг электросвязи юридическому лицу | H82: 13000 | I82: =IF(X82 = 11, H82 + SUM(S82:S88) - SUM(T82:T88) - SUM(P82:P88) - V82,0) -> 2209.02 | J82: 7707049388 | K82: ПАО "Ростелеком" | L82: нет | M82: с 01.01.2021 по 31.12.2021 | N82: 2021-01-31 | O82: Не позднее 30 календарных дней с момента подписания Заказчиком и Подрядчиком акта приема-сдачи и предоставленного Подрядчиком документа на оплату | P82: 1596.46 | Q82: 2021-02-17 | X82: 11
N83: 2021-02-28 | P83: 1459.99 | Q83: 2021-04-14 | X83: 11
N84: 2021-03-31 | P84: 1714.49 | Q84: 2021-04-14 | X84: 11
N85: 2021-04-30 | P85: 1610.89 | Q85: 2021-05-17 | X85: 11
N86: 2021-05-31 | P86: 1387.09 | Q86: 2021-06-10 | X86: 11
N87: 2021-06-30 | P87: 1535.93 | Q87: 2021-07-15 | X87: 11
N88: 2021-07-31 | P88: 1486.13 | Q88: 2021-08-18 | X88: 11
A89: 12 | B89: Муниципальная программа "Развитие образования" | C89: нет | D89: 925 0000 0000000000 244 | E89: № 166-Б2 | F89: 2021-01-21 | G89: Услуги электросвязи | H89: 2000 | I89: =IF(X89 = 12, H89 + SUM(S89:S95) - SUM(T89:T95) - SUM(P89:P95) - V89,0) -> 1063.06 | J89: 7707049388 | K89: ПАО "Ростелеком" | L89: нет | M89: с 01.01.2021 по 31.12.2021 | N89: 2021-01-31 | O89: Не позднее 30 календарных дней с момента подписания Заказчиком и Подрядчиком акта приема-сдачи и предоставленного Подрядчиком документа на оплату | P89: 289.82 | Q89: 2021-02-17 | X89: 12
N90: 2021-02-28 | P90: 203.59 | Q90: 2021-04-14 | X90: 12
N91: 2021-03-31 | P91: 229.22 | Q91: 2021-04-14 | X91: 12
N92: 2021-04-30 | P92: 78.23 | Q92: 2021-05-17 | X92: 12
N93: 2021-05-31 | P93: 59.66 | Q93: 2021-06-10 | X93: 12
N94: 2021-06-30 | P94: 53.76 | Q94: 2021-07-15 | X94: 12
N95: 2021-07-31 | P95: 22.66 | Q95: 2021-08-18 | X95: 12
A96: 13 | B96: Муниципальная программа "Развитие образования" | C96: нет | D96: 925 0000 0000000000 244 | E96: № 6/5-ТК | F96: 2021-01-21 | G96: Договор поставки нефтепродуктов | H96: 418300 | I96: =IF(X96 = 13, H96 + SUM(S96:S98) - SUM(T96:T98) - SUM(P96:P98) - V96,0) -> 93745.47 | J96: 2310195709 | K96: ООО "Альянс Розница" | L96: нет | M96: С 01.01.2021 по 31.03.2021 | N96: 2021-01-31 | O96: Не позднее 30 календарных дней с момента подписания Заказчиком и Подрядчиком акта приема-сдачи и предоставленного Подрядчиком документа на оплату | P96: 101060.39 | Q96: 2021-02-26 | X96: 13
N97: 2021-02-28 | P97: 112852.45 | Q97: 2021-04-01 | X97: 13
N98: 2021-03-31 | P98: 110641.69 | Q98: 2021-04-20 | X98: 13
A99: 14 | B99: Муниципальная программа "Развитие образования" | C99: нет | D99: 925 0000 000000000 244 | E99: 6 | F99: 2021-03-01 | G99: на оказание услуг по организации горячего питания обучающихся по образовательным программам начального общего образования | H99: 425022.78 | I99: =IF(X99 = 14, H99 + SUM(S99:S114) - SUM(T99:T114) - SUM(P99:P114) - V99,0) -> 102427.21 | J99: 2353020735 | K99: ООО "Тимашевское ПРТ Райпо" | L99: нет | M99: с 01.03.2021 по 24.05.2021 | N99: 2021-03-05 | O99: Не позднее 30 календарных дней с момента подписания Заказчиком и Подрядчиком акта приема-сдачи и предоставленного Подрядчиком документа на оплату | P99: 2048.4 | Q99: 2021-04-20 | X99: 14
N100: 2021-03-05 | P100: 32090.88 | Q100: 2021-04-20 | X100: 14
N101: 2021-03-31 | P101: 1310.49 | Q101: 2021-04-20 | X101: 14
N102: 2021-03-31 | P102: 20530.62 | Q102: 2021-04-20 | X102: 14
N103: 2021-03-19 | P103: 3419.97 | Q103: 2021-04-21 | X103: 14
N104: 2021-03-19 | P104: 53578.37 | Q104: 2021-04-21 | X104: 14
N105: 2021-04-09 | P105: 2969.03 | Q105: 2021-05-19 | X105: 14
N106: 2021-04-09 | P106: 46513.81 | Q106: 2021-05-19 | X106: 14
N107: 2021-04-23 | P107: 4256.7 | Q107: 2021-05-19 | X107: 14
N108: 2021-04-23 | P108: 66686.94 | Q108: 2021-05-19 | X108: 14
N109: 2021-04-30 | P109: 2181.76 | Q109: 2021-05-19 | X109: 14
N110: 2021-04-30 | P110: 34180.2 | Q110: 2021-05-19 | X110: 14
N111: 2021-05-14 | P111: 19842.87 | Q111: 2021-05-26 | X111: 14
N112: 2021-05-14 | P112: 1266.59 | Q112: 2021-05-26 | X112: 14
N113: 2021-05-21 | P113: 1903.17 | Q113: 2021-05-28 | X113: 14
N114: 2021-05-28 | P114: 29815.77 | Q114: 2021-05-28 | X114: 14
A115: 15 | B115: Муниципальная программа "Развитие образования" | C115: нет | D115: 925 0000 000000000 244 | E115: 6/1 | F115: 2021-03-01 | G115: на оказание услуг по организации горячего питания обучающихся по образовательным программам начального общего образования | H115: 127300 | I115: =IF(X115 = 15, H115 + SUM(S115:S117) - SUM(T115:T117) - SUM(P115:P117) - V115,0) -> 23731 | J115: 2353020735 | K115: ООО "ПРТ "райпо" | L115: нет | N115: 2021-03-31 | O115: Не позднее 30 календарных дней с момента подписания Заказчиком и Подрядчиком акта приема-сдачи и предоставленного Подрядчиком документа на оплату | P115: 36670 | Q115: 2021-04-13 | X115: 15
N116: 2021-04-30 | P116: 49666 | Q116: 2021-05-19 | X116: 15
N117: 2021-05-21 | P117: 17233 | Q117: 2021-06-07 | X117: 15
A118: 16 | B118: Муниципальная программа "Развитие образования" | C118: да | D118: 925 0000 000000000 244 | E118: 26 | F118: 2021-03-30 | G118: Бензин | H118: 341316 | I118: =IF(X118 = 16, H118 + SUM(S118:S120) - SUM(T118:T120) - SUM(P118:P120) - V118,0) -> 89100.55 | J118: 7743529527 | K118: ООО "РН-Карт" | L118: нет | N118: 2021-04-30 | O118: Не позднее 30 календарных дней с момента подписания Заказчиком и Подрядчиком акта приема-сдачи и предоставленного Подрядчиком документа на оплату | P118: 128717 | Q118: 2021-05-21 | X118: 16
N119: 2021-05-31 | P119: 71679.5 | Q119: 2021-07-02 | X119: 16
N120: 2021-06-30 | P120: 51818.95 | Q120: 2021-07-19 | X120: 16
A121: 17 | B121: Муниципальная программа "Развитие образования" | C121: нет | D121: 925 0000 0000000 244 | E121: 898 | F121: 2021-06-07 | G121: аттестация рабочих мест | H121: 3200 | I121: =IF(X121 = 17, H121 + SUM(S121:S121) - SUM(T121:T121) - SUM(P121:P121) - V121,0) -> 0 | J121: 2310136750 | K121: ООО "Карьера" | L121: нет | M121: 60 рабочих дней со дня подписания договора | N121: 2021-07-25 | O121: Не позднее 30 календарных дней с момента подписания Заказчиком и Подрядчиком акта приема-сдачи и предоставленного Подрядчиком документа на оплату | P121: 3200 | Q121: 2021-08-31 | X121: 17
A122: 18 | B122: Муниципальная программа "Развитие образования" | C122: нет | D122: 925 0000 0000000 244 | E122: 6 | F122: 2021-06-21 | G122: питание лагерь | H122: 78030.4 | I122: =IF(X122 = 18, H122 + SUM(S122:S122) - SUM(T122:T122) - SUM(P122:P122) - V122,0) -> 0 | J122: 23530020735 | K122: ООО "ПРТ "райпо" | L122: нет | M122: с 28.06.2021 по 17.07.2021 | N122: 2021-07-18 | O122: Не позднее 30 календарных дней с момента подписания Заказчиком и Подрядчиком акта приема-сдачи и предоставленного Подрядчиком документа на оплату | P122: 78030.4 | Q122: 2021-07-30 | X122: 18
A123: 19 | B123: Муниципальная программа "Развитие образования" | C123: нет | D123: 925 0000 000000000 244 | E123: SYUT-18078 | F123: 2021-06-23 | G123: ларь морозильный | H123: 35621.01 | I123: =IF(X123 = 19, H123 + SUM(S123:S123) - SUM(T123:T123) - SUM(P123:P123) - V123,0) -> 31000 | J123: 2312068671 | K123: ООО "Сервис-ЮГ-ККМ" | L123: нет | M123: в течение 15 дней с момента оплаты | N123: 2021-07-01 | O123: Не позднее 30 календарных дней с момента подписания Заказчиком и Подрядчиком акта приема-сдачи и предоставленного Подрядчиком документа на оплату | P123: 4621.01 | Q123: 2021-07-01 | X123: 19
A124: 20 | B124: Муниципальная программа "Развитие образования" | C124: нет | D124: 925 0000 00000000 244 | E124: 55 | F124: 2021-06-30 | G124: охрана | H124: 353280 | I124: =IF(X124 = 20, H124 + SUM(S124:S125) - SUM(T124:T125) - SUM(P124:P125) - V124,0) -> 234240 | J124: 2304067057 | K124: ООО ЧОО "Легион" | L124: нет | M124: с 01.07.2021 по 31.12.2021 | N124: 2021-07-31 | O124: Не позднее 30 календарных дней с момента подписания Заказчиком и Подрядчиком акта приема-сдачи и предоставленного Подрядчиком документа на оплату | P124: 59520 | Q124: 2021-08-05 | X124: 20
N125: 2021-08-31 | P125: 59520 | Q125: 2021-08-31 | X125: 20
A126: 21 | B126: Муниципальная программа "Развитие образования" | C126: нет | D126: 925 0000 00000000 244 | E126: 187 | F126: 2021-07-05 | G126: ремонт МФУ | H126: 12300 | I126: =IF(X126 = 21, H126 + SUM(S126:S126) - SUM(T126:T126) - SUM(P126:P126) - V126,0) -> 0 | J126: 235307008564 | K126: ИП Нидялков | L126: нет | N126: 2021-07-05 | O126: Не позднее 30 календарных дней с момента подписания Заказчиком и Подрядчиком акта приема-сдачи и предоставленного Подрядчиком документа на оплату | P126: 12300 | Q126: 2021-07-12 | X126: 21
A127: 22 | B127: Муниципальная программа "Развитие образования" | C127: нет | D127: 925 0000 00000000 244 | E127: 72 | F127: 2021-06-25 | G127: видеорегистратор, жесткий диск | H127: 34990 | I127: =IF(X127 = 22, H127 + SUM(S127:S127) - SUM(T127:T127) - SUM(P127:P127) - V127,0) -> 0 | J127: 235305540660 | K127: ИП Карлов | L127: нет | M127: В течение 5 дней после подписания договора | N127: 2021-06-30 | O127: Не позднее 30 календарных дней с момента подписания Заказчиком и Подрядчиком акта приема-сдачи и предоставленного Подрядчиком документа на оплату | P127: 34990 | Q127: 2021-07-12 | X127: 22
A128: 23 | B128: Муниципальная программа "Развитие образования" | C128: да | D128: 925 0000 00000000 244 | E128: 45 | F128: 2021-06-30 | G128: бензин | H128: 244400 | I128: =IF(X128 = 23, H128 + SUM(S128:S128) - SUM(T128:T128) - SUM(P128:P128) - V128,0) -> 194281.76 | J128: 2310195709 | K128: ООО "Альянс Розница" | L128: нет | M128: с 01.07.2021 по 30.09.2021 | O128: Не позднее 30 календарных дней с момента подписания Заказчиком и Подрядчиком акта приема-сдачи и предоставленного Подрядчиком документа на оплату | P128: 50118.24 | Q128: 2021-08-19 | X128: 23
X129: 24

Sheet Ед.поставщик за искл. п.4,5 ч.1
E2: Сумма заключенных контрактов | G2: =SUM(G9:G9999) -> 703000 | L2: Сумма средств выплаченных по контрактам | N2: =SUM(N9:N9999) -> 356619.1 | Q2: Общая сумма расторжений по контрактам/договорам | T2: =SUM(T9:T9999) -> 0
A6: № п/п | B6: № в реестре контрактов | C6: Код бюджетной классификации | D6: № контракта | E6: Дата заключения | F6: Предмет договора/контракта | G6: Цена контракта (Объем финансового обеспечения подлежащий к оплате в текущем фин. году) | H6: Остаток по контракту | I6: ИНН поставщика (подрядчика, исполнителя) | J6: Поставщик (подрядчик, исполнитель) | K6: Сроки поставки товара (оказания услуги, выполнения работы), согласно контракта; Предоставление документов на оплату Закзчику | L6: Фактическая дата поставки товара (оказания услуги, выполнения работы) и (или) предоставление документов на оплату и подписание документов о приемке | M6: Сроки оплаты согласно договора/контракта | N6: Сумма согласно документа об исполнении контракта заказчиком | O6: Фактическая дата оплаты | P6: Изменение контракта (№, дата) | Q6: Изменение контракта (увеличение цены контракта в рублях) | R6: Изменение контракта (уменьшение цены контракта в рублях) | S6: Расторжение контракта (№, дата) | T6: Сумма расторжения | U6: Примечание
A7: 1 | B7: 2 | C7: 3 | D7: 4 | E7: 5 | F7: 6 | G7: 7 | H7: 8 | I7: 9 | J7: 10 | K7: 11 | L7: 12 | M7: 13 | N7: 14 | O7: 15 | P7: 16 | Q7: 17 | R7: 18 | S7: 19 | T7: 20 | U7: 21
A8: 1 | B8: 3235301125818100175 | C8: 9020104 5210000190244 | D8: 123 | E8: 2019-12-24 | F8: Поставка электрической энергии | G8: 100000 | H8: 90000 | I8: 2308091759 | J8: АО "НЭСК" | K8: Поставка электрической энергии осуществляется постоянно, в течение срока действия контракта | L8: 2019-12-02 | M8: До 10 числа расчетного месяца в размере 30%, до 25 числа расчетного месяца 40%, до 18 числа месяца, следующего за расчетным | N8: 10000 | O8: 2019-01-24 | U8: Пример
A9: 1 | C9: 925 0000 0000000000 244 | D9: 1401 | E9: 2021-01-21 | F9: Поставка тепловой энергии | G9: 703000 | H9: =IF(V9 = 1, G9 + SUM(Q9:Q12) - SUM(R9:R12) - SUM(N9:N12) - T9,0) -> 346380.9 | I9: 2312054894 | J9: АО "АТЭК" | K9: Согласно графика | L9: 2021-01-31 | M9: до 25 числа | N9: 115708.48 | O9: 2021-02-17 | V9: 1
L10: 2021-02-28 | N10: 101661.82 | O10: 2021-04-01 | V10: 1
L11: 2021-03-31 | N11: 87002.88 | O11: 2021-04-12 | V11: 1
L12: 2021-04-30 | N12: 52245.92 | O12: 2021-05-17 | V12: 1
V13: 2

Sheet Состоявшиеся аукционы
E2: Сумма начальных (максимальных) цен контрактов | G2: =SUM(G9:G9999) -> 0 | O2: Сумма заключенных контрактов | Q2: =SUM(Q9:Q9999) -> 0 | T2: Сумма средств выплаченных по контрактам | V2: =SUM(V9:V9999) -> 0 | Y2: Общая сумма расторжений по контрактам/договорам | AB2: =SUM(AB9:AB9999) -> 0
A6: № п/п | B6: Наименование муниципальной программы, национального или регионального проекта | C6: ИКЗ (Идентификационный код закупки) | D6: Код бюджетной классификации | E6: № извещения | F6: Объект закупки | G6: Н(М)ЦК | H6: Экономия | I6: Количество поданных заявок | J6: Количество заявок признанные несоответствующими | K6: СМП и СОНО | L6: № в реестре контрактов | M6: № контракта | N6: Дата заключения | O6: ИНН поставщика (подрядчика, исполнителя) | P6: Поставщик (подрядчик, исполнитель) | Q6: Цена контракта | R6: Остаток по контракту | S6: Сроки поставки товара (оказания услуги, выполнения работы), согласно контракта | T6: Фактическая дата поставки товара (оказания услуги, выполнения работы) и (или) предоставление документов на оплату и подписание документов о приемке | U6: Сроки оплаты согласно контракта | V6: Сумма согласно документа об исполнении контракта заказчиком | W6: Фактическая дата оплаты | X6: Изменение контракта (№, дата) | Y6: Изменение контракта (увеличение цены контракта в рублях) | Z6: Изменение контракта (уменьшение цены контракта в рублях) | AA6: Расторжение контракта (№, дата) | AB6: Сумма расторжения | AC6: Примечание
A7: 1 | B7: 2 | C7: 3 | D7: 4 | E7: 5 | F7: 6 | G7: 7 | H7: 8 | I7: 9 | J7: 10 | K7: 11 | L7: 12 | M7: 13 | N7: 14 | O7: 15 | P7: 16 | Q7: 17 | R7: 18 | S7: 19 | T7: 20 | U7: 21 | V7: 22 | W7: 23 | X7: 24 | Y7: 25 | Z7: 26 | AA7: 27 | AB7: 28 | AC7: 29
A8: 1 | C8: 193235301125823530100103000010000244 | D8: 902 0113 1210310010 244 | E8: 0818300019919000194 | F8: Поставка картриджа и тонер-картриджей | G8: 15500.01 | H8: =G8-Q8 -> 6725 | I8: 6 | J8: 0 | K8: Нет | L8: 3235301125819000079 | M8: Ф.2019.412162 | N8: 2019-07-09 | O8: 3443923035 | P8: ООО "АНАЛИТИК ЦЕНТР" | Q8: 8775.01 | R8: =Q8-V8 -> 0 | S8: В течение 20 рабочих дней со дня заключения сторонами муниципального контракта | T8: 2019-07-31 | U8: Не позднее 30 календарных дней с момента подписания Заказчиком документа о приемке выполненных работ и представленного Подрядчиком документа на оплату | V8: 8775.01 | W8: 2019-08-19 | AC8: Пример
AD9: 2

Sheet Несостоявшиеся аукционы
E2: Сумма начальных (максимальных) цен контрактов | G2: =SUM(G9:G9996) -> 0 | O2: Сумма заключенных контрактов | Q2: =SUM(Q9:Q9996) -> 0 | T2: Сумма средств выплаченных по контрактам | V2: =SUM(V9:V9996) -> 0 | Y2: Общая сумма расторжений по контрактам/договорам | AB2: =SUM(AB9:AB9996) -> 0
A6: № п/п | B6: Наименование муниципальной программы, национального или регионального проекта | C6: ИКЗ (Идентификационный код закупки) | D6: Код бюджетной классификации | E6: № извещения | F6: Объект закупки | G6: Н(М)ЦК | H6: Экономия | I6: Количество поданных заявок | J6: Количество заявок признанные несоответствующими | K6: СМП и СОНО | L6: № в реестре контрактов | M6: № контракта | N6: Дата заключения | O6: ИНН поставщика (подрядчика, исполнителя) | P6: Поставщик (подрядчик, исполнитель) | Q6: Цена контракта (Объем финансового обеспечения подлежащий к оплате в текущем фин. году) | R6: Остаток по контракту | S6: Сроки поставки товара (оказания услуги, выполнения работы), согласно контракта | T6: Фактическая дата поставки товара (оказания услуги, выполнения работы) и (или) предоставление документов на оплату и подписание документов о приемке | U6: Сроки оплаты согласно контракта | V6: Сумма согласно документа об исполнении контракта заказчиком | W6: Фактическая дата оплаты | X6: Изменение контракта (№, дата) | Y6: Изменение контракта (увеличение цены контракта в рублях) | Z6: Изменение контракта (уменьшение цены контракта в рублях) | AA6: Расторжение контракта (№, дата) | AB6: Сумма расторжения | AC6: Примечание
A7: 1 | B7: 2 | C7: 3 | D7: 4 | E7: 5 | F7: 6 | G7: 7 | H7: 8 | I7: 9 | J7: 10 | K7: 11 | L7: 12 | M7: 13 | N7: 14 | O7: 15 | P7: 16 | Q7: 17 | R7: 18 | S7: 19 | T7: 20 | U7: 21 | V7: 22 | W7: 23 | X7: 24 | Y7: 25 | Z7: 26 | AA7: 27 | AB7: 28 | AC7: 29
A8: 1 | C8: 193235301125823530100103000010000244 | D8: 902 0113 1210310010 244 | E8: 0818300019919000194 | F8: Поставка картриджа и тонер-картриджей | G8: 15500.01 | H8: =G8-Q8 -> 6725 | I8: 6 | J8: 0 | K8: Нет | L8: 3235301125819000079 | M8: Ф.2019.412162 | N8: 2019-07-09 | O8: 3443923035 | P8: ООО "АНАЛИТИК ЦЕНТР" | Q8: 8775.01 | R8: =Q8-V8 -> 0 | S8: В течение 20 рабочих дней со дня заключения сторонами муниципального контракта | T8: 2019-07-31 | U8: Не позднее 30 календарных дней с момента подписания Заказчиком документа о приемке выполненных работ и представленного Подрядчиком документа на оплату | V8: 8775.01 | W8: 2019-08-19 | AC8: Пример
AD9: 2

Sheet Иные конкурентные закупки
E2: Сумма начальных (максимальных) цен контрактов | G2: =SUM(G9:G9995) -> 0 | O2: Сумма заключенных контрактов | Q2: =SUM(Q9:Q9995) -> 0 | T2: Сумма средств выплаченных по контрактам | V2: =SUM(V9:V9995) -> 0 | Y2: Общая сумма расторжений по контрактам/договорам | AB2: =SUM(AB9:AB9995) -> 0
A6: № п/п | B6: Наименование муниципальной программы, национального или регионального проекта | C6: ИКЗ (Идентификационный код закупки) | D6: Код бюджетной классификации | E6: № извещения | F6: Объект закупки | G6: Н(М)ЦК | H6: Экономия | I6: Количество поданных заявок | J6: Количество заявок признанные несоответствующими | K6: СМП и СОНО | L6: № в реестре контрактов | M6: № контракта | N6: Дата заключения | O6: ИНН поставщика (подрядчика, исполнителя) | P6: Поставщик (подрядчик, исполнитель) | Q6: Цена контракта | R6: Остаток по контракту | S6: Сроки поставки товара (оказания услуги, выполнения работы), согласно контракта | T6: Фактическая дата поставки товара (оказания услуги, выполнения работы) и (или) предоставление документов на оплату и подписание документов о приемке | U6: Сроки оплаты согласно контракта | V6: Сумма согласно документа об исполнении контракта заказчиком | W6: Фактическая дата оплаты | X6: Изменение контракта (№, дата) | Y6: Изменение контракта (увеличение цены контракта в рублях) | Z6: Изменение контракта (уменьшение цены контракта в рублях) | AA6: Расторжение контракта (№, дата) | AB6: Сумма расторжения | AC6: Примечание
A7: 1 | B7: 2 | C7: 3 | D7: 4 | E7: 5 | F7: 6 | G7: 7 | H7: 8 | I7: 9 | J7: 10 | K7: 11 | L7: 12 | M7: 13 | N7: 14 | O7: 15 | P7: 16 | Q7: 17 | R7: 18 | S7: 19 | T7: 20 | U7: 21 | V7: 22 | W7: 23 | X7: 24 | Y7: 25 | Z7: 26 | AA7: 27 | AB7: 28 | AC7: 29
A8: 1 | C8: 193235301125823530100103000010000244 | D8: 902 0113 1210310010 244 | E8: 0818300019919000194 | F8: Поставка картриджа и тонер-картриджей | G8: 15500.01 | H8: =G8-Q8 -> 6725 | I8: 6 | J8: 0 | K8: Нет | L8: 3235301125819000079 | M8: Ф.2019.412162 | N8: 2019-07-09 | O8: 3443923035 | P8: ООО "АНАЛИТИК ЦЕНТР" | Q8: 8775.01 | R8: =Q8-V8 -> 0 | S8: В течение 20 рабочих дней со дня заключения сторонами муниципального контракта | T8: 2019-07-31 | U8: Не позднее 30 календарных дней с момента подписания Заказчиком документа о приемке выполненных работ и представленного Подрядчиком документа на оплату | V8: 8775.01 | W8: 2019-08-19 | AC8: Пример
AD9: 2

Sheet Настройки (hidden)
A1: 93 | B1: 43 | C1: 9 | D1: Ед. поставщик п.4 ч.1 | F1: Index | G1: Index | H1: Index | I1: Index | J1: Index | K1: Index
A2: TekStrokaP4 | B2: TekNomerP4 | C2: NachStrokaP4 | F2: 43 | G2: 23 | H2: 1 | I2: 0 | J2: 0 | K2: 0
F3: Index+1 | G3: Index+1 | H3: Index+1 | I3: Index+1 | J3: Index+1 | K3: Index+1
A4: 128 | B4: 23 | C4: 9 | D4: Ед. поставщик п.5 ч.1 | F4: 44 | G4: 24 | H4: 2 | I4: 0 | J4: 0 | K4: 0
A5: TekStrokaP5 | B5: TekNomerP5 | C5: NachStrokaP5
A7: 12 | B7: 1 | C7: 9 | D7: Ед.поставщик за искл. п.4,5 ч.1
A8: TekStrokaSt93 | B8: TekNomerSt93 | C8: NachStrokaSt93
A10: 8 | B10: 0 | C10: 9 | D10: Состоявшиеся аукционы
A11: TekStrokaSEA | B11: TekNomerSEA | C11: NachStrokaSEA
A13: 8 | B13: 0 | C13: 9 | D13: Несостоявшиеся аукционы
A14: TekStrokaNEA | B14: TekNomerNEA | C14: NachStrokaNEA
A16: 8 | B16: 0 | C16: 9 | D16: Иные конкурентные закупки
A17: TekStrokaIKZ | B17: TekNomerIKZ | C17: NachStrokaIKZ
